bitfinex-derivatives/quotes_SOLF0:USTF0_20240907
["timestamp","ask_amount","ask_price","bid_price","bid_amount"]
[1725668470790,8.30678552,124.92,124.89,4.0043]
[1725668470984,8.30678552,124.91,124.9,4.0042]
[1725668471694,4.0025,124.96,124.89,4.07272341]
[1725668471890,29.89399636,124.97,124.89,1.417]
[1725668471891,8.30659322,124.91,124.89,1.417]
[1725668472090,24.57,124.95,124.89,1.417]
[1725668472292,4.0032,124.93,124.89,1.417]
[1725668472491,8.30644613,124.92,124.9,4.0041]
[1725668472801,8.30644613,124.91,124.9,4.0041]
[1725668476100,4.0029,124.94,124.9,4.0041]
[1725668476291,8.30611613,124.93,124.9,4.0041]
[1725668476492,8.30611613,124.92,124.9,4.0041]
[1725668476690,8.30611613,124.91,124.9,4.0041]
[1725668477803,4.0029,124.94,124.9,4.0041]
[1725668477998,8.30658629,124.91,124.9,4.0041]
[1725668478195,8.30658629,124.93,124.9,4.0041]
[1725668478396,8.30658629,124.92,124.9,4.0041]
[1725668478595,8.30658629,124.91,124.9,4.0041]
[1725668480803,8.30655044,124.91,124.9,4.0041]
[1725668480999,4.0029,124.94,124.9,4.0041]
[1725668481199,8.306556,124.91,124.9,4.0041]
[1725668482003,8.30651317,124.91,124.9,4.0041]
[1725668486107,8.30651317,124.91,124.89,5.4213]
[1725668486300,8.30651317,124.9,124.89,5.4213]
[1725668487208,4.0032,124.93,124.89,5.4213]
[1725668487503,8.30631922,124.9,124.87,2.7294]
[1725668487799,8.30631922,124.89,124.87,2.7294]
[1725668487999,4.0037,124.92,124.88,4.0046]
[1725668488201,8.30688536,124.91,124.88,4.0046]
[1725668488403,22.15128536,124.9,124.86,4.0053]
[1725668488600,8.30688536,124.89,124.86,4.0053]
[1725668488801,8.30688536,124.88,124.86,4.0053]
[1725668488994,8.30688536,124.87,124.85,4.0056]
[1725668489198,8.30688536,124.86,124.85,4.0056]
[1725668491907,26.0134,124.92,124.88,4.0047]
[1725668492405,8.3073103,124.91,124.88,4.0047]
[1725668492604,8.3073103,124.9,124.88,4.0047]
[1725668492800,8.3073103,124.89,124.88,4.0047]
[1725668499109,8.3073103,124.89,124.87,4.005]
[1725668499316,8.3073103,124.88,124.87,4.005]
[1725668503211,4.004,124.91,124.87,4.005]
[1725668503413,8.30732991,124.9,124.87,4.005]
[1725668503809,8.30732991,124.89,124.87,4.005]
[1725668504009,8.30732991,124.88,124.87,4.005]
[1725668508016,4.004,124.91,124.87,4.005]
[1725668508214,12.31149263,124.9,124.87,4.005]
[1725668508413,8.30729263,124.89,124.87,4.005]
[1725668508615,8.30729263,124.88,124.87,4.005]
[1725668511216,8.30729263,124.88,124.86,4.0053]
[1725668511415,8.30729263,124.87,124.86,4.0053]
[1725668511918,8.30729263,124.87,124.86,13.8453]
[1725668512810,4.004,124.91,124.87,4.005]
[1725668513216,8.30745969,124.9,124.87,4.005]
[1725668513412,8.30745969,124.89,124.87,4.005]
[1725668513611,8.30745969,124.88,124.87,4.005]
[1725668514618,8.30745969,124.88,124.86,13.8453]
[1725668514819,8.30745969,124.87,124.86,13.8453]
[1725668515119,8.30745969,124.87,124.85,1.3743]
[1725668515120,8.30745969,124.87,124.85,4.0056]
[1725668515414,8.30745969,124.86,124.85,4.0056]
[1725668515814,4.0045,124.89,124.85,4.0056]
[1725668516016,4.0045,124.89,124.86,4.0054]
[1725668516314,8.30726715,124.88,124.86,4.0054]
[1725668516523,8.30726715,124.87,124.86,13.8454]
[1725668516716,1.3834,124.92,124.86,9.84]
[1725668517019,12.31125099,124.91,124.86,9.84]
[1725668517219,4.004,124.91,124.86,9.84]
[1725668517409,4.004,124.91,124.87,4.005]
[1725668518108,1.3834,124.92,124.88,9.84]
[1725668518519,5.387,124.92,124.88,13.8447]
[1725668518718,1.3834,124.92,124.88,13.8447]
[1725668519021,4.004,124.91,124.87,4.005]
[1725668520022,11.2234,124.92,124.86,9.84]
[1725668520023,15.2271,124.92,124.88,4.0047]
[1725668520222,11.2234,124.92,124.88,4.0047]
[1725668520914,11.2234,124.92,124.86,9.84]
[1725668521116,11.2234,124.92,124.84,11.1815]
[1725668521117,1.3834,124.92,124.84,11.1815]
[1725668521317,1.3834,124.92,124.87,9.84]
[1725668521517,1.3834,124.92,124.88,9.84]
[1725668522018,5.3869,124.92,124.88,13.8446]
[1725668522219,1.3489,124.95,124.9,9.84]
[1725668522418,11.1889,124.95,124.88,9.84]
[1725668522622,13.8434,124.93,124.89,4.0042]
[1725668524226,8.29728264,124.92,124.89,4.0042]
[1725668524523,8.29728264,124.91,124.89,4.0042]
[1725668524729,8.29728264,124.9,124.89,4.0042]
[1725668525819,8.29728264,124.9,124.88,4.0047]
[1725668526024,8.29728264,124.89,124.88,4.0047]
[1725668527328,8.29728264,124.89,124.87,4.005]
[1725668527524,8.29728264,124.88,124.87,4.005]
[1725668528725,8.29728264,124.88,124.87,13.845]
[1725668532929,4.0035,124.92,124.88,4.0046]
[1725668533532,8.29698655,124.91,124.88,4.0046]
[1725668533727,8.29698655,124.9,124.88,4.0046]
[1725668533926,8.29698655,124.89,124.88,4.0046]
[1725668534335,8.29698655,124.89,124.87,4.005]
[1725668534530,8.29698655,124.88,124.87,4.005]
[1725668536136,4.0039,124.91,124.87,4.005]
[1725668536438,8.29710013,124.9,124.87,4.005]
[1725668536626,8.29710013,124.89,124.87,4.005]
[1725668536826,8.29710013,124.88,124.85,1.3557]
[1725668537027,8.29710013,124.87,124.86,9.84]
[1725668537734,8.29710013,124.87,124.86,13.8454]
[1725668539542,9.84,124.93,124.86,9.84]
[1725668539746,9.84,124.93,124.87,9.84]
[1725668539949,12.30117873,124.92,124.87,9.84]
[1725668540143,8.29747873,124.91,124.88,4.0046]
[1725668540339,8.29747873,124.9,124.88,4.0046]
[1725668540533,8.29747873,124.89,124.88,4.0046]
[1725668540745,8.29747873,124.89,124.87,4.005]
[1725668540946,8.29747873,124.88,124.87,4.005]
[1725668541340,8.29747873,124.88,124.84,1.3415]
[1725668541547,8.29747873,124.87,124.85,4.0055]
[1725668541737,8.29747873,124.86,124.85,4.0055]
[1725668542746,8.29747873,124.86,124.84,5.3474]
[1725668543045,8.29451096,124.85,124.81,11.1387]
[1725668543244,6.58899565,124.9,124.81,11.1387]
[1725668543245,8.29451096,124.84,124.82,9.84]
[1725668543441,8.29451096,124.83,124.82,13.8467]
[1725668543641,16.42899565,124.9,124.82,13.80643064]
[1725668543642,2.6401,124.9,124.82,13.80643064]
[1725668543946,2.6401,124.9,124.85,9.84]
[1725668544147,6.6444,124.9,124.86,4.0052]
[1725668544550,6.6444,124.9,124.86,8.08258815]
[1725668544846,4.004,124.91,124.87,13.8451]
[1725668545941,7.92236183,124.9,124.86,8.08268815]
[1725668546142,4.0044,124.9,124.86,4.0053]
[1725668547444,4.0045,124.89,124.86,4.0053]
[1725668548249,7.96001528,124.9,124.86,4.0053]
[1725668548449,4.0044,124.9,124.87,9.84]
[1725668549052,4.0044,124.9,124.87,13.8449]
[1725668549244,4.0044,124.9,124.87,4.0049]
[1725668555949,8.28136603,124.89,124.87,4.0049]
[1725668556144,8.28136603,124.88,124.87,4.0049]
[1725668559453,8.28136603,124.88,124.87,13.8449]
[1725668561165,6.7249,124.93,124.89,4.0044]
[1725668561460,8.28206689,124.92,124.89,4.0044]
[1725668561659,8.28206689,124.91,124.89,4.0044]
[1725668561859,8.28206689,124.9,124.88,13.8446]
[1725668562061,8.28206689,124.89,124.88,13.8446]
[1725668562252,6.7249,124.93,124.88,13.8446]
[1725668562459,8.28546466,124.89,124.88,13.8446]
[1725668563656,8.28546466,124.89,124.87,13.845]
[1725668563963,8.28546466,124.88,124.87,13.845]
[1725668565462,4.0037,124.92,124.88,4.0046]
[1725668565761,8.28482182,124.91,124.88,4.0046]
[1725668565956,8.28482182,124.9,124.88,4.0046]
[1725668566161,8.28482182,124.89,124.88,4.0046]
[1725668567467,4.0037,124.92,124.88,4.0046]
[1725668567668,8.28530231,124.91,124.88,4.0046]
[1725668567960,8.28530231,124.9,124.88,4.0046]
[1725668568264,9.84,124.95,124.88,9.84]
[1725668568465,8.28522319,124.94,124.88,9.84]
[1725668568665,8.28522319,124.93,124.88,9.84]
[1725668568866,9.84,124.93,124.88,9.84]
[1725668569060,8.28530228,124.92,124.88,9.84]
[1725668569262,8.28530228,124.91,124.88,13.8445]
[1725668569463,8.28530228,124.9,124.88,13.8445]
[1725668569663,8.28530228,124.89,124.88,13.8445]
[1725668572258,6.12690228,124.89,124.88,13.8445]
[1725668572568,227.0,125.01,124.88,9.84]
[1725668572764,2.8239,125.0,124.97,9.84]
[1725668572970,44.83990366,125.06,124.98,9.84]
[1725668573166,9.84,125.04,124.98,9.84]
[1725668573668,4.0003,125.02,124.98,13.8414]
[1725668574063,4.0003,125.02,124.99,4.0012]
[1725668574863,4.0001,125.03,124.99,4.0012]
[1725668575765,9.84,125.04,124.87,8.0101]
[1725668575972,9.84,125.02,124.96,9.84]
[1725668576169,4.0012,125.0,124.96,9.84]
[1725668576473,4.0012,125.0,124.96,13.842]
[1725668577573,4.0012,125.0,124.97,4.0019]
[1725668577773,4.0012,125.0,124.97,13.8419]
[1725668577978,5.4135,125.01,124.97,13.8419]
[1725668578272,5.4135,125.01,124.99,9.84]
[1725668581176,6.80884161,125.09,125.0,9.84]
[1725668581370,3.94253436,125.08,125.03,9.84]
[1725668581575,10.96584161,125.09,125.03,9.84]
[1725668581875,3.9988,125.07,125.03,13.8398]
[1725668583170,3.9993,125.06,125.02,4.0002]
[1725668583373,3.9993,125.06,125.02,9.84]
[1725668583573,3.9993,125.06,125.03,9.84]
[1725668584279,3.9993,125.06,125.03,13.84]
[1725668584475,3.9989,125.07,125.03,13.84]
[1725668584878,3.9989,125.07,125.04,3.9996]
[1725668585068,3.9989,125.07,125.05,9.84]
[1725668586567,3.9985,125.08,125.05,13.8392]
[1725668586978,4.157,125.09,125.05,13.8392]
[1725668587170,8.1551,125.09,125.06,9.84]
[1725668589072,13.8732096,125.11,125.06,9.84]
[1725668589073,4.0332096,125.11,125.06,9.84]
[1725668589278,4.1287,125.15,125.07,9.84]
[1725668589474,4.02863888,125.12,125.07,9.84]
[1725668589878,3.9981,125.1,125.07,9.84]
[1725668590086,13.9687,125.15,125.09,9.84]
[1725668590289,3.9976,125.11,125.09,9.84]
[1725668590781,110.26822647,125.13,125.09,9.84]
[1725668590979,110.26822647,125.13,125.07,9.84]
[1725668591180,9.84,125.12,125.04,3.9996]
[1725668591381,9.84,125.11,125.05,9.84]
[1725668591575,9.84,125.08,125.0,3.93012891]
[1725668591776,9.84,125.08,125.01,13.8406]
[1725668592483,3.9999,125.04,125.01,13.8406]
[1725668596790,3.9999,125.04,125.03,9.84]
[1725668597589,4.1127,125.1,125.03,9.84]
[1725668597886,13.9527,125.1,125.03,9.84]
[1725668598588,3.9995,125.05,125.03,9.84]
[1725668599090,4.1127,125.1,125.04,9.84]
[1725668599296,3.999,125.07,125.04,9.84]
[1725668599485,4.1127,125.1,125.04,9.84]
[1725668600283,3.9992,125.06,125.04,9.84]
[1725668600487,13.9527,125.1,125.04,9.84]
[1725668600887,3.9992,125.06,125.04,9.84]
[1725668601095,13.9527,125.1,125.04,9.84]
[1725668601295,4.1127,125.1,125.04,9.84]
[1725668601595,3.999,125.07,125.04,9.84]
[1725668601793,4.1127,125.1,125.06,9.84]
[1725668602095,4.1127,125.1,125.07,9.84]
[1725668602387,110.26822647,125.13,125.07,9.84]
[1725668602588,110.26822647,125.13,125.08,9.84]
[1725668605398,3.9978,125.1,125.08,9.84]
[1725668606498,3.9981,125.09,125.08,9.84]
[1725668607396,3.9979,125.1,125.08,9.84]
[1725668612104,3.9981,125.09,125.08,9.84]
[1725668614200,110.26822647,125.13,125.08,9.84]
[1725668614405,3.9979,125.1,125.08,9.84]
[1725668614607,3.9979,125.1,125.09,9.84]
[1725668616109,3.9981,125.09,125.08,9.84]
[1725668621318,3.998,125.1,125.08,9.84]
[1725668621512,110.26822647,125.13,125.09,9.84]
[1725668621918,3.9978,125.1,125.09,9.84]
[1725668630729,3.9976,125.11,125.09,9.84]
[1725668631030,3.9976,125.11,125.1,9.84]
[1725668632827,3.9976,125.11,125.05,4.04294914]
[1725668633024,36.1864,125.15,125.0,4.0008]
[1725668633230,24.01,125.1,125.03,9.84]
[1725668633425,4.1633,125.09,125.03,9.84]
[1725668633630,3.9991,125.06,125.03,9.84]
[1725668633828,4.08532957,125.06,124.99,1.328]
[1725668634128,4.08532957,125.06,124.66,147.06717516]
[1725668634129,9.84,125.03,124.97,166.28183996]
[1725668634327,9.84,125.03,124.81,140.10077359]
[1725668634328,9.84,125.02,124.88,4.1589]
[1725668634529,9.84,125.02,124.96,9.84]
[1725668634530,14.0033,125.02,124.96,9.84]
[1725668635034,4.0019,124.98,124.96,9.84]
[1725668636033,4.0015,124.99,124.96,24.61]
[1725668638725,4.001,125.0,124.96,24.61]
[1725668640225,4.0014,124.99,124.96,24.61]
[1725668644135,4.0008,125.01,124.97,4.0017]
[1725668644338,1.3274,125.07,124.99,24.61]
[1725668644534,2.7226,125.07,124.99,24.61]
[1725668644738,1.341,125.06,124.99,24.61]
[1725668644930,5.40231726,125.06,124.99,24.61]
[1725668645135,4.0004,125.02,124.99,24.61]
[1725668646735,3.92363192,125.04,124.99,24.61]
[1725668646941,25.951,125.06,124.97,28.6118]
[1725668647137,25.77829929,125.05,124.95,24.61]
[1725668647337,24.61,125.03,124.94,25.9769]
[1725668647541,24.61,125.03,124.94,24.61]
[1725668647742,4.0022,124.97,124.94,24.61]
[1725668648045,24.61,125.03,124.94,28.6127]
[1725668648537,4.0019,124.98,124.94,28.6127]
[1725668648741,24.61,125.03,124.94,28.6127]
[1725668649144,24.61,125.01,124.92,24.61]
[1725668649335,24.61,124.99,124.89,3.97398391]
[1725668649640,28.62801032,124.99,124.9,24.61]
[1725668649838,4.01801032,124.99,124.92,28.6135]
[1725668650037,4.0445,125.0,124.92,24.61]
[1725668650439,4.0021,124.97,124.93,4.0031]
[1725668652444,4.0445,125.0,124.94,24.61]
[1725668653538,4.0019,124.98,124.94,28.6128]
[1725668654846,4.0019,124.98,124.95,4.0025]
[1725668658046,4.0019,124.98,124.95,13.8325]
[1725668658651,4.0019,124.97,124.94,13.8327]
[1725668658843,4.0019,124.97,124.93,9.83]
[1725668659039,13.73496718,124.99,124.93,9.83]
[1725668659244,13.73496718,124.99,124.93,13.8331]
[1725668660344,4.0022,124.97,124.93,13.8331]
[1725668662254,4.0022,124.97,124.94,13.8328]
[1725668662455,4.0022,124.97,124.94,4.0028]
[1725668663149,4.0023,124.96,124.93,13.8331]
[1725668665947,4.0023,124.96,124.93,4.0031]
[1725668666546,13.8745,125.0,124.94,13.8327]
[1725668666748,3.9650128,124.99,124.94,13.8327]
[1725668666946,4.0445,125.0,124.95,9.83]
[1725668667144,4.0018,124.98,124.95,9.83]
[1725668668461,4.0018,124.98,124.95,13.8324]
[1725668670661,4.0445,125.0,124.95,9.83]
[1725668670852,9.83,125.01,124.95,9.83]
[1725668671056,9.83,125.03,124.96,9.83]
[1725668671260,4.0011,125.0,124.97,4.0017]
[1725668671759,4.0011,125.0,124.96,9.83]
[1725668672657,4.0011,125.0,124.96,13.832]
[1725668673266,4.0014,124.99,124.96,4.002]
[1725668675857,3.93507531,124.99,124.94,4.08605938]
[1725668676053,11.1646,125.0,124.93,9.83]
[1725668676557,4.03874579,124.99,124.93,9.83]
[1725668677064,4.0018,124.98,124.93,9.83]
[1725668677260,8.0921809,124.98,124.93,9.83]
[1725668677963,8.0921809,124.98,124.95,4.0025]
[1725668679759,8.0921809,124.98,124.94,4.0027]
[1725668680559,8.0921809,124.98,124.93,9.83]
[1725668680760,8.0921809,124.98,124.95,4.0025]
[1725668681671,4.0019,124.97,124.94,4.0028]
[1725668696887,1.3346,125.0,124.95,9.83]
[1725668697089,9.83,125.02,124.96,9.83]
[1725668697477,4.0012,125.0,124.96,13.8319]
[1725668699080,12.5094,125.04,124.98,4.0014]
[1725668700282,9.83,125.02,124.91,3.99791744]
[1725668700484,2.6794,125.04,124.96,9.83]
[1725668700687,9.83,125.02,124.96,9.83]
[1725668701285,4.0011,125.0,124.97,4.0017]
[1725668701487,1.3301,125.04,124.95,3.95204953]
[1725668701782,4.06066734,125.06,124.99,9.83]
[1725668701981,9.83,125.03,124.97,1.3435]
[1725668702188,9.83,125.01,124.95,9.83]
[1725668702490,9.83,125.01,124.95,13.8324]
[1725668702685,9.83,125.0,124.94,9.83]
[1725668702886,9.83,125.0,124.93,13.8331]
[1725668703090,9.83,124.99,124.93,4.0031]
[1725668703490,4.0021,124.97,124.93,4.0031]
[1725668705584,4.0021,124.97,124.92,11.1271]
[1725668705585,4.0019,124.98,124.92,11.1271]
[1725668705782,9.83,124.99,124.94,4.0028]
[1725668707387,4.002,124.97,124.94,4.0028]
[1725668708789,4.002,124.97,124.93,4.0031]
[1725668709885,4.0023,124.96,124.93,4.0031]
[1725668721602,9.83,124.99,124.92,9.83]
[1725668721904,4.0021,124.97,124.92,9.83]
[1725668722899,4.0021,124.97,124.94,4.0027]
[1725668723603,4.0017,124.98,124.95,4.0025]
[1725668724101,9.83,125.0,124.94,9.83]
[1725668724701,9.83,125.0,124.94,13.8327]
[1725668725499,4.0018,124.98,124.95,4.0025]
[1725668725696,9.83,125.0,124.95,4.0025]
[1725668726098,4.0019,124.97,124.94,13.8327]
[1725668727193,11.2263,125.01,124.94,9.83]
[1725668727400,11.2263,125.01,124.95,9.83]
[1725668727705,4.0015,124.99,124.96,4.0021]
[1725668734809,11.2263,125.01,124.9,9.83]
[1725668734810,9.83,124.97,124.9,9.83]
[1725668735111,13.8325,124.96,124.92,4.0033]
[1725668739114,13.8325,124.96,124.93,4.0031]
[1725668740412,4.0025,124.96,124.93,4.0031]
[1725668740613,1.3963,125.01,124.94,4.0026]
[1725668740811,9.83,125.0,124.94,4.0026]
[1725668741317,4.0021,124.97,124.94,4.0026]
[1725668741705,1.3963,125.01,124.93,4.003]
[1725668741907,4.0023,124.96,124.93,4.003]
[1725668744609,9.83,124.97,124.91,9.83]
[1725668744815,11.1811,124.97,124.91,9.83]
[1725668746420,4.0026,124.95,124.92,4.0035]
[1725668746820,4.0026,124.95,124.89,1.3435]
[1725668746821,13.83624413,124.95,124.89,11.1735]
[1725668747122,9.83,124.95,124.89,11.1735]
[1725668747313,4.003,124.94,124.91,4.0036]
[1725668749415,13.92671287,124.95,124.94,95.997]
[1725668750318,17.92931287,124.95,124.94,95.997]
[1725668755227,4.0024,124.96,124.94,95.997]
[1725668762327,4.0026,124.95,124.94,95.997]
[1725668763429,4.0023,124.96,124.94,95.997]
[1725668765231,5.3532,124.97,124.94,99.9998]
[1725668765729,1.3511,124.97,124.94,99.9998]
[1725668766329,4.0023,124.96,124.94,99.9998]
[1725668766629,1.3511,124.97,124.94,99.9998]
[1725668767030,5.3533,124.97,124.94,99.9998]
[1725668767326,11.1811,124.97,124.94,95.997]
[1725668767730,4.0024,124.96,124.94,95.997]
[1725668768926,1.3151,125.0,124.94,95.997]
[1725668769119,11.1451,125.0,124.94,95.997]
[1725668769528,4.0018,124.98,124.95,4.0023]
[1725668771024,4.0014,124.99,124.96,4.0021]
[1725668771424,11.1451,125.0,124.94,95.997]
[1725668771630,4.0016,124.98,124.95,4.0024]
[1725668771825,11.1451,125.0,124.94,105.827]
[1725668771826,1.3151,125.0,124.94,105.827]
[1725668773033,4.0015,124.99,124.96,4.002]
[1725668773734,4.06652048,125.02,124.95,13.89356267]
[1725668773935,9.83,125.03,124.95,13.89356267]
[1725668774134,4.0006,125.01,124.97,4.0016]
[1725668774431,4.0006,125.01,124.96,9.83]
[1725668775435,4.0006,125.01,124.98,4.0015]
[1725668775632,4.0005,125.02,124.96,9.83]
[1725668775827,4.0005,125.02,124.95,5.43126267]
[1725668775828,4.0005,125.02,124.97,9.83]
[1725668776039,36.18024802,125.07,124.98,9.83]
[1725668776338,5.44881749,125.07,125.01,9.83]
[1725668776536,4.07291749,125.07,125.01,9.83]
[1725668776733,13.8285,125.08,125.03,9.83]
[1725668776930,3.9985,125.08,125.03,9.83]
[1725668777830,3.9985,125.08,125.02,4.09012644]
[1725668777831,3.9982,125.09,125.04,9.83]
[1725668779140,3.9982,125.09,125.05,3.9992]
[1725668783341,3.9986,125.08,125.04,3.9995]
[1725668785338,3.9986,125.08,125.05,3.9993]
[1725668792853,3.9986,125.08,125.05,13.8293]
[1725668793954,3.9982,125.09,125.06,3.9988]
[1725668794854,8.0213978,125.09,125.06,3.9988]
[1725668795565,3.9985,125.08,125.05,13.8292]
[1725668797255,4.0231978,125.09,125.03,5.2972]
[1725668797456,9.83,125.08,125.01,4.0151986]
[1725668797657,4.0012,125.08,125.02,9.83]
[1725668797856,3.9989,125.07,125.03,3.9998]
[1725668798360,32.0026,125.15,125.05,9.83]
[1725668798574,3.9982,125.09,125.06,3.999]
[1725668798771,111.47115434,125.13,125.08,9.83]
[1725668798967,3.9973,125.12,125.08,13.8282]
[1725668799169,111.47115434,125.13,125.08,9.83]
[1725668799372,111.47115434,125.13,125.0,8.0177249]
[1725668799373,111.47115434,125.13,125.07,9.83]
[1725668799973,3.9977,125.11,125.07,13.8285]
[1725668801081,3.9977,125.11,125.08,3.9983]
[1725668804177,3.9972,125.12,125.08,13.8283]
[1725668804881,3.9972,125.12,125.09,3.9981]
[1725668806484,107.40964163,125.13,125.08,13.8283]
[1725668807281,3.9975,125.11,125.08,13.8283]
[1725668808781,3.9975,125.11,125.08,3.9983]
[1725668809085,3.9975,125.11,125.08,13.8283]
[1725668810981,3.9975,125.11,125.09,9.83]
[1725668812976,3.9975,125.11,125.09,13.8281]
[1725668814785,3.997,125.13,125.1,3.9978]
[1725668814984,9.83,125.17,125.1,9.83]
[1725668815792,2.6531,125.18,125.1,9.83]
[1725668815985,1.1672952,125.17,125.11,3.9972]
[1725668817189,2.6531,125.18,125.13,13.8266]
[1725668817385,3.9957,125.17,125.13,9.83]
[1725668817686,3.9957,125.17,125.14,3.9963]
[1725668818085,6.6485,125.18,125.14,3.9963]
[1725668818291,3.9954,125.18,125.14,9.83]
[1725668818793,3.9954,125.18,125.15,3.9961]
[1725668819390,3.9954,125.18,125.14,13.8264]
[1725668819586,13.79050359,125.2,125.07,4.0001]
[1725668819788,13.79050359,125.2,125.13,3.9968]
[1725668820192,3.9959,125.16,125.13,3.9968]
[1725668822589,3.9962,125.15,125.12,13.827]
[1725668823391,3.9965,125.14,125.07,4.0001]
[1725668823594,9.83,125.18,125.12,9.83]
[1725668824093,3.96050359,125.2,125.07,4.0001]
[1725668824094,9.83,125.17,125.07,4.0001]
[1725668824284,1.3191,125.16,125.09,9.83]
[1725668824487,3.9967,125.14,125.1,3.9975]
[1725668824791,1.3191,125.16,125.1,3.9975]
[1725668824993,3.9973,125.12,125.09,3.9981]
[1725668825183,3.9446027,125.12,125.07,11.1463]
[1725668825386,9.83,125.14,125.07,11.1463]
[1725668825785,3.9976,125.11,125.08,3.9984]
[1725668827590,3.9976,125.11,125.07,13.8285]
[1725668828597,9.83,125.1,125.04,9.83]
[1725668828797,11.2105,125.1,125.04,9.83]
[1725668829298,3.9986,125.08,125.04,9.83]
[1725668829491,1.3805,125.1,125.05,9.83]
[1725668829989,3.9982,125.09,125.05,13.8291]
[1725668830991,3.9979,125.1,125.07,9.83]
[1725668831192,1.3931,125.11,125.07,9.83]
[1725668831795,5.3906,125.11,125.07,9.83]
[1725668831993,3.9975,125.11,125.07,9.83]
[1725668833403,3.9975,125.11,125.08,3.9983]
[1725668833902,3.9975,125.11,125.05,1.3506]
[1725668834104,3.91462547,125.12,125.05,1.3506]
[1725668834302,12.5898,125.14,125.06,9.83]
[1725668835199,12.5898,125.14,125.07,3.9985]
[1725668836204,9.83,125.12,125.06,3.9989]
[1725668836405,1.3331,125.11,125.06,3.9989]
[1725668837306,3.9983,125.09,125.06,3.9989]
[1725668844103,3.9985,125.08,125.05,13.8292]
[1725668844602,9.83,125.09,125.01,1.3199]
[1725668844802,9.83,125.08,125.02,9.83]
[1725668845004,11.1911,125.08,125.02,9.83]
[1725668845212,3.9994,125.05,125.01,4.0004]
[1725668845401,3.9994,125.05,125.0,9.83]
[1725668845605,3.9994,125.05,125.02,9.83]
[1725668846003,3.9994,125.05,125.02,13.8301]
[1725668848015,3.9993,125.06,125.03,3.9999]
[1725668851619,11.1911,125.08,125.03,3.9999]
[1725668851919,11.1911,125.08,125.03,9.83]
[1725668851920,1.3611,125.08,125.03,9.83]
[1725668852113,5.3597,125.08,125.04,9.83]
[1725668852306,5.3597,125.08,125.05,3.9992]
[1725668855211,3.9988,125.07,125.04,3.9995]
[1725668857416,1.3331,125.11,125.05,9.83]
[1725668859316,3.9982,125.09,125.06,3.999]
[1725668862219,1.3331,125.11,125.05,9.83]
[1725668862425,1.3331,125.11,125.06,9.83]
[1725668863120,5.3308,125.11,125.07,3.9985]
[1725668863318,5.3308,125.11,125.06,9.83]
[1725668863319,1.3331,125.11,125.06,9.83]
[1725668863725,1.3331,125.11,125.08,3.9981]
[1725668865422,5.3306,125.11,125.08,3.9981]
[1725668867326,8.07453245,125.12,125.08,3.9981]
[1725668869319,8.07453245,125.12,125.09,3.998]
[1725668869928,3.9967,125.14,125.1,3.9976]
[1725668874131,126.731971,125.15,125.1,3.9976]
[1725668875426,3.997,125.13,125.1,3.9976]
[1725668876034,3.9971,125.12,125.1,3.9976]
[1725668876330,3.9971,125.12,125.09,3.9979]
[1725668877031,3.9975,125.11,125.08,13.8282]
[1725668877532,3.9975,125.11,125.08,9.83]
[1725668877737,3.9973,125.12,125.09,3.998]